{"text_format":"3","workbook":"xlsx","n_sheets":2,"sheets":["出欠確認の管理","出欠確認の概要"],"not_rendered":{"charts":2,"defined_names":22},"read":"whole","date_system":"1900"}

{"sheet":"出欠確認の管理","index":0,"n_rows":15,"n_cols":15,"rows_kept":15,"merged":[[0,3,0,4],[0,5,0,7],[1,3,1,14]]}
[{"$nulls":5},"出欠確認の概要"]
[null,"結婚式の日付",null,"結婚招待状の管理"]
[null,{"$f":"TODAY()+283","v":"2019-06-24"},null,"ゲスト名","送信済みですか?","出欠確認","パーティ","ゲスト","関係","住所","市区町村","都道府県","郵便","電話","連絡先のメール アドレス"]
[null,"残り日数",null,"名前 1","はい","はい",1,"結婚予定者 1","弟","住所","市区町村","都道府県","郵便","電話","someone@example.com"]
[null,{"$f":"DaysRemaining","v":283},null,"名前 2","はい","いいえ",3,"結婚予定者 1","友人","住所","市区町村","都道府県","郵便","電話","someone@example.com"]
[null,"出席",null,"名前 3","はい","はい",1,"その他","友人","住所","市区町村","都道府県","郵便","電話","someone@example.com"]
[null,{"$f":"TotalAttending","v":12},null,"名前 4","はい","いいえ",2,"結婚予定者 2","友人","住所","市区町村","都道府県","郵便","電話","someone@example.com"]
[null,"欠席",null,"名前 5","はい","はい",2,"結婚予定者 2","友人","住所","市区町村","都道府県","郵便","電話","someone@example.com"]
[null,{"$f":"TotalNotAttending","v":6},null,"名前 6","はい","仮の予定",null,"その他","友人","住所","市区町村","都道府県","郵便","電話","someone@example.com"]
[null,"未払い",null,"名前 7","はい","はい",2,"結婚予定者 2","友人","住所","市区町村","都道府県","郵便","電話","someone@example.com"]
[null,{"$f":"OutstandingRSVP","v":1},null,"名前 8","はい","いいえ",1,"その他","友人","住所","市区町村","都道府県","郵便","電話","someone@example.com"]
[{"$nulls":3},"名前 9","はい","はい",4,"結婚予定者 1","友人","住所","市区町村","都道府県","郵便","電話","someone@example.com"]
[{"$nulls":3},"名前 10","はい","はい",2,"結婚予定者 1","友人","住所","市区町村","都道府県","郵便","電話","someone@example.com"]
[{"$nulls":3},"名前 11","はい",null,null,"結婚予定者 2","弟","住所","市区町村","都道府県","郵便","電話","someone@example.com"]
[{"$nulls":3},"合計:",{"$f":"COUNTIF(出欠確認の管理!$E$4:$E$14,\"はい\")","v":11},{"$f":"COUNTA(出欠確認の管理!$F$4:$F$14)","v":10},{"$f":"SUBTOTAL(109,tblInvites[パーティ])","v":18}]

{"sheet":"出欠確認の概要","index":1,"n_rows":11,"n_cols":15,"rows_kept":11,"merged":[[0,3,0,4],[0,5,0,8],[1,3,1,11],[2,3,6,3],[2,4,6,4],[7,3,11,3],[7,4,11,4]]}
[{"$nulls":3},"出欠確認の管理"]
[null,"結婚式の日付",null,"出欠確認の概要",{"$nulls":10},"メモ"]
[null,{"$f":"WeddingDate","v":"2019-06-24"},null,"はい","このセルには、出席予定のゲストの種類を示す集合横棒グラフが示されます。"]
[null,"残り日数",{"$nulls":3},"その他",{"$f":"IFERROR(SUMIFS(tblInvites[パーティ],tblInvites[ゲスト],\"=その他\",tblInvites[出欠確認],\"はい\"),0)","v":1},{"$f":"tblInvites[[#Totals],[送信済みですか?]]","v":11}]
[null,{"$f":"DaysRemaining","v":283},{"$nulls":3},"結婚予定者 2",{"$f":"IFERROR(SUMIFS(tblInvites[パーティ],tblInvites[ゲスト],\"=結婚予定者 2\",tblInvites[出欠確認],\"はい\"),0)","v":4},{"$f":"tblInvites[[#Totals],[送信済みですか?]]","v":11}]
[null,"出席",{"$nulls":3},"結婚予定者 1",{"$f":"IFERROR(SUMIFS(tblInvites[パーティ],tblInvites[ゲスト],\"=結婚予定者 1\",tblInvites[出欠確認],\"はい\"),0)","v":7},{"$f":"tblInvites[[#Totals],[送信済みですか?]]","v":11}]
[null,{"$f":"TotalAttending","v":12}]
[null,"欠席",null,"いいえ","このセルには、欠席予定のゲストの種類を示す集合横棒グラフが示されます。"]
[null,{"$f":"TotalNotAttending","v":6},{"$nulls":3},"その他",{"$f":"IFERROR(SUMIFS(tblInvites[パーティ],tblInvites[ゲスト],\"=その他\",tblInvites[出欠確認],\"いいえ\"),0)","v":1},{"$f":"tblInvites[[#Totals],[送信済みですか?]]","v":11}]
[null,"未払い",{"$nulls":3},"結婚予定者 2",{"$f":"IFERROR(SUMIFS(tblInvites[パーティ],tblInvites[ゲスト],\"=結婚予定者 2\",tblInvites[出欠確認],\"いいえ\"),0)","v":2},{"$f":"tblInvites[[#Totals],[送信済みですか?]]","v":11}]
[null,{"$f":"OutstandingRSVP","v":1},{"$nulls":3},"結婚予定者 1",{"$f":"IFERROR(SUMIFS(tblInvites[パーティ],tblInvites[ゲスト],\"=結婚予定者 1\",tblInvites[出欠確認],\"いいえ\"),0)","v":3},{"$f":"tblInvites[[#Totals],[送信済みですか?]]","v":11}]